Cogmind - Beta 15 @@@ ROGUE MODE // 2025.05.24 @ 22:04:10 Player: Zaros426 Result: Destroyed by S-10 Pest with Light Assault Rifle Performance ------------- Evolutions (0) 0 Regions Visited (2) 400 Robots Destroyed (69) 345 Value Destroyed (1712) 1712 Prototype IDs (11) 220 Alien Tech Used (0) 0 Bonus (0) 0 TOTAL SCORE: 2677 Bonus ------- None Cogmind --------- Core Integrity 0/250 Matter 185/300 Energy 265/265 System Corruption 0% Temperature Cool (0) Movement Treading (560) Ox5 Location -10/Subcaves Parts ------- > --- POWER (1) -------- Improved Ion Engine > --- PROPULSION (2) --- Light Treads Light Treads > --- UTILITY (2) ------ Humpback > --- WEAPON (2) ------- Subdweller Beam Cannon Subdweller Shrapnel Launcher > --- INVENTORY (35) --- Improved Ion Engine Subdweller Power Source Subdweller Power Source Subdweller Power Source Cooling System Disposable Heat Sink High-capacity Storage Unit High-capacity Matter Pod (108) Subdweller Optics Scrap Shield Scrap Shield Hacking Suite Rainbow Chip Spread Laser Spread Laser Light EM Pulse Cannon Light EM Pulse Cannon Subdweller Beam Cannon Subdweller Machine Gun Subdweller Machine Gun Subdweller Machine Gun Makeshift Axe Shrapnel Trap Scrap Shield Fragment (48) Scrap Shield Fragment (45) Scrap Shield Fragment (42) Peak State ------------ > --- POWER ------------ Improved Ion Engine > --- PROPULSION ------- Light Treads Light Treads > --- UTILITY ---------- Humpback > --- WEAPON ----------- Subdweller Beam Cannon Subdweller Shrapnel Launcher > --- INVENTORY -------- Improved Ion Engine Subdweller Power Source Subdweller Power Source Cooling System Disposable Heat Sink High-capacity Storage Unit High-capacity Matter Pod Subdweller Optics Scrap Shield Scrap Shield Hacking Suite Rainbow Chip Spread Laser Spread Laser Light EM Pulse Cannon Light EM Pulse Cannon Subdweller Beam Cannon Subdweller Machine Gun Subdweller Machine Gun Makeshift Axe Shrapnel Trap Scrap Shield Fragment Scrap Shield Fragment [Rating: 16] Favorites ----------- Power Improved Ion Engine Engine Improved Ion Engine Propulsion Light Treads Treads Light Treads Utility Scrap Shield Device Seismic Detector Storage Humpback Processor Targeting Computer Protection Scrap Shield Weapon Subdweller Beam Cannon Energy Gun Spread Laser Energy Cannon Subdweller Beam Cannon Ballistic Gun Assault Rifle Launcher Subdweller Shrapnel Launcher Build | -11 -10 -10 ------- Run | Yrd Mat Sub Slots Evolved . | . . . Power . | . . . Propulsion . | . . . Utility . | . . . Weapon . | . . . Parts Attached 26 | 7 9 10 Power 4 | 1 2 1 Engine 4 | 1 2 1 Core . | . . . Reactor . | . . . Propulsion 4 | 2 2 . Treads 4 | 2 2 . Leg . | . . . Wheel . | . . . Hover . | . . . Flight . | . . . Utility 6 | 2 2 2 Device 1 | 1 . . Storage 3 | 1 1 1 Processor 1 | . 1 . Hackware . | . . . Protection 1 | . . 1 Artifact . | . . . Weapon 12 | 2 3 7 Energy Gun 2 | . 2 . Energy Cannon 6 | . 1 5 Ballistic Gun 3 | 2 . 1 Ballistic Cannon . | . . . Launcher 1 | . . 1 Special Weapon . | . . . Impact Weapon . | . . . Slashing Weapon . | . . . Piercing Weapon . | . . . Special Melee Weapon . | . . . Unidentified Prototypes . | . . . Parts Lost 1 | . . 1 Power . | . . . Propulsion . | . . . Utility . | . . . Weapon 1 | . . 1 Highest Loss Streak 1 | . . 1 To Critical Strikes . | . . . Average Backups 10 | 2 10 10 Power 1 | . 1 1 Propulsion . | . . . Utility 4 | . 4 5 Weapon 3 | 1 4 3 Tool/Special . | . . . Unused Backups 31 | . 8 23 Power 7 | . 3 4 Propulsion . | . . . Utility 11 | . 1 10 Weapon 12 | . 4 8 Tool/Special 1 | . . 1 Average Slot Usage (%) 87 | . 100 85 Engine 14 | . 14 14 Treads 28 | . 28 28 Storage 7 | . 14 6 Processor 1 | . 8 . Protection 6 | . . 7 Energy Gun 1 | . 10 . Energy Cannon 15 | . 6 17 Ballistic Gun 3 | . 10 1 Launcher 7 | . . 8 Peak Build Rating 16 | 7 12 16 Average Rating 12 | 5 9 13 On Entrance 6 | . 7 12 Naked Turns . | . . . Heaviest Build 223 | 15 33 223 Greatest Support 40 | 40 40 40 Greatest Overweight (x) 5 | . . 5 Average Overweight (x) 1 | . . 1 Largest Inventory Capacity 35 | 8 15 35 Average Capacity 17 | 7 14 18 Most Carried 28 | 4 15 28 Average Carried 12 | 2 10 12 Final Capacity 35 | 8 15 35 Final Carried 28 | 4 15 28 Class Distribution -------------------- 37% | Hauler-Mutant 34% | Mutant 27% | Subdweller-Mutant Dominant Class ---------------- Mutant | -10/Materials Hauler-Mutant | -10/Subcaves Resources | -11 -10 -10 ----------- Run | Yrd Mat Sub Matter Collected 1848 | 330 535 983 Remotely . | . . . Salvage Created 2159 | 110 1129 920 Parts 160 | 10 74 76 Haulers Intercepted 2 | . 2 . Recyclers Shooed 2 | . 2 . Parts Field Recycled . | . . . Retrieved Matter . | . . . Parts Self-Destructed 9 | . . 9 Prevented 1 | . . 1 Kills | -11 -10 -10 ------- Run | Yrd Mat Sub Combat Hostiles Destroyed 49 | . 23 26 Guns 17 | . 16 1 Cannons 18 | . 7 11 AOE 12 | . . 12 Classes Destroyed 12 | 3 6 3 Worker 5 | 1 4 . Builder 2 | . 2 . Tunneler 3 | 2 1 . Hauler 2 | . 2 . Recycler 3 | 1 2 . Operator 2 | . 2 . Watcher 3 | . 3 . Swarmer 11 | . 9 2 Grunt 14 | . 14 . Sentry 1 | . . 1 Artisan 1 | . . 1 Subdweller 23 | . . 23 Best Kill Streak 9 | 3 9 3 Combat Bots Only 4 | . 4 3 Max Kills in Single Turn 2 | 1 2 2 Gunslinging . | . . . Exploded 2 | . . 2 Melee . | . . . Uniques/NPCs Destroyed . | . . . Combat | -11 -10 -10 -------- Run | Yrd Mat Sub Hostile Shots Fired 155 | . 82 73 Missed 46 | . 19 27 Hits 109 | . 63 46 Projectile 109 | . 63 46 Critical Strikes 4 | . . 4 Damage Taken 1732 | . 597 1135 Core 251 | . 111 140 Absorbed by Shields . | . . . Core Remaining (%) 100 | 100 . . Volleys Fired 221 | 10 81 130 Largest 2 | 2 2 2 Hottest 160 | 40 130 160 Shots Fired 362 | 20 162 180 Gun 134 | 20 109 5 Cannon 187 | . 53 134 Launcher 41 | . . 41 Special . | . . . Kinetic 141 | 20 75 46 Thermal 162 | . 87 75 Explosive . | . . . Electromagnetic 59 | . . 59 Robot Hit Streak 20 | 8 11 20 Robot Miss Streak 5 | 1 5 3 Penetration Max . | . . . Secondary Targets . | . . . Shots Hit Robots 179 | 16 88 75 Core Hits 126 | 4 79 43 Critical Kills . | . . . Critical Parts Destroyed 1 | 1 . . Critical Strikes 1 | 1 . . Destroy 1 | 1 . . Melee Attacks . | . . . Impact . | . . . Slashing . | . . . Piercing . | . . . Sneak Attacks . | . . . Combat Hostiles . | . . . Follow-up Attacks . | . . . Damage Inflicted 4582 | 201 1289 3092 Guns 1119 | 201 843 75 Cannons 1816 | . 446 1370 Explosions 1647 | . . 1647 Melee . | . . . Ramming . | . . . Kinetic 2309 | 201 434 1674 Thermal 1719 | . 855 864 Explosive . | . . . Electromagnetic 554 | . . 554 Impact . | . . . Slashing . | . . . Piercing . | . . . Highest Corruption . | . . . Average Corruption . | . . . Corruption Purged . | . . . Corruption Blocked . | . . . Overload Shots . | . . . Overflow Damage . | . . . Projectiles . | . . . Explosions . | . . . Melee . | . . . Knockbacks . | . . . Impact . | . . . Kinetic . | . . . Secondary . | . . . Self-Inflicted Damage 193 | . . 193 Shots 9 | . . 9 Rammed . | . . . Targets Rammed . | . . . Kicked . | . . . Crushed . | . . . Highest Temperature 250 | . 250 237 Average Temperature 59 | . 75 30 Received Heat Transfer 318 | . 165 153 Siege Activations . | . . . Martial Activations . | . . . Shielding Activations . | . . . Robots Disrupted . | . . . Combat Hostiles . | . . . Robots Corrupted 2 | . . 2 Combat Hostiles 2 | . . 2 Parts Fried 5 | . . 5 Impact Corruptions . | . . . Robots Melted . | . . . Combat Hostiles . | . . . Parts Melted 1 | . 1 . Heat Transferred 2605 | . 1445 1160 Parts Sabotaged . | . . . Parts Stolen . | . . . Parts Stripped . | . . . Power Chain Reactions 1 | . . 1 Alert | -11 -10 -10 ------- Run | Yrd Mat Sub Maximum Alert Level 1 | . 1 . Low Security (%) 59 | 100 54 . Level 1 40 | . 45 . Level 2 . | . . . Level 3 . | . . . Level 4 . | . . . Level 5 . | . . . High Security . | . . . Max Security . | . . . Peak Influence 330 | 10 330 . Initial . | . . . Average 136 | 1 153 . Influence Increases 911 | 20 816 75 Destroy 0b10 Robot/C 520 | . 460 60 Destroy 0b10 Robot/NC 100 | 20 80 . Destroy Leader 100 | . 100 . Successful Hack 41 | . 41 . Select Force Hacks 60 | . 60 . Disable Machine 15 | . 15 . Lose Combat Pursuer 75 | . 60 15 Influence Decreases 856 | 20 494 342 Entered New Map 155 | . . 155 Time Decay 701 | 20 494 187 Squads Dispatched 5 | . 5 . Investigation 3 | . 3 . Extermination . | . . . Reinforcement 2 | . 2 . Assault . | . . . Garrison . | . . . Intercept . | . . . Searches Triggered . | . . . Construction Impeded . | . . . Haulers Reinforced . | . . . Active Scanning Responses . | . . . Cargo Convoy Interrupts . | . . . Stealth | -11 -10 -10 --------- Run | Yrd Mat Sub Distress Signals 2 | . 2 . Communications Jammed . | . . . Distress Signals . | . . . Times Spotted 67 | . 38 29 Peak Tracking Total 8 | . 8 6 Tactical Retreats 4 | . 2 2 Traps | -11 -10 -10 ------- Run | Yrd Mat Sub Traps Triggered 2 | . 1 1 Indirectly . | . . . Trap Hack Attempts . | . . . Triggered . | . . . Disarmed . | . . . Reprogrammed . | . . . Reused . | . . . Traps Extracted . | . . . Installed . | . . . Triggered . | . . . Most Traps Carried 1 | . . 1 Machines | -11 -10 -10 ---------- Run | Yrd Mat Sub Machines Disabled 3 | . 1 2 Max in Single Turn 1 | . 1 1 Machines Repaired . | . . . Machines Dismantled . | . . . Machines Sabotaged . | . . . Overloaded Fab Kills . | . . . Hacking | -11 -10 -10 --------- Run | Yrd Mat Sub Machines Accessed 10 | . 8 2 Terminals 6 | . 6 . Fabricators . | . . . Repair Stations . | . . . Recycling Units 2 | . 2 . Scanalyzers . | . . . Garrison Access . | . . . Total Hacks 35 | . 23 12 Successful 22 | . 10 12 Failed 12 | . 12 . Catastrophic 2 | . 2 . Database Lockouts 1 | . 1 . Manual 15 | . 15 . Terminals 21 | . 21 . Fabricators . | . . . Repair Stations . | . . . Recycling Units 2 | . 2 . Scanalyzers . | . . . Garrison Access . | . . . Terminal Hacks 14 | . 2 12 Record 11 | . . 11 Robot Analysis 1 | . 1 . Registered Components 1 | . 1 . Proto ID Catalog 1 | . . 1 Fabricator Hacks . | . . . Repair Station Hacks . | . . . Recycling Unit Hacks . | . . . Scanalyzer . | . . . Garrison Access Hacks . | . . . Unauthorized Hacks 8 | . 8 . Terminals 6 | . 6 . Operators 1 | . 1 . Skim 5 | . 5 . Fabricators . | . . . Repair Stations . | . . . Recycling Units 2 | . 2 . Tunnel 2 | . 2 . Scanalyzers . | . . . Garrison Access . | . . . Data Cores Recovered . | . . . Used . | . . . Hacking Detections 6 | . 6 . Full Trace Events . | . . . Feedback Events . | . . . Feedback Blocked . | . . . Robot Schematics Acquired . | . . . Robots Built . | . . . Authchips . | . . . Time . | . . . Total Robot Build Rating . | . . . Part Schematics Acquired . | . . . Parts Built . | . . . Authchips . | . . . Time . | . . . Total Part Build Rating . | . . . Parts Repaired . | . . . Time . | . . . Parts Recycled . | . . . Recycled Matter . | . . . Retrieved Matter . | . . . Retrieved Components . | . . . Parts Scanalyzed . | . . . Part Schematics Acquired . | . . . Parts Damaged . | . . . Bothacking | -11 -10 -10 ------------ Run | Yrd Mat Sub Used RIF Installer . | . . . Robots Hacked . | . . . Non-combat . | . . . Combat . | . . . Robot Hacks Applied . | . . . Relay Couplers Released . | . . . Fabnet Peak Effective % . | . . . Robots Rewired . | . . . Allies Hacked . | . . . Hacks Repelled . | . . . Allies | -11 -10 -10 -------- Run | Yrd Mat Sub Total Allies . | . . . Largest Group . | . . . Highest-Rated Group . | . . . Highest-Rated Ally . | . . . Total Orders . | . . . Ally Attacks . | . . . Total Damage . | . . . Kills . | . . . Allies Corrupted . | . . . Allies Melted . | . . . Intel | -11 -10 -10 ------- Run | Yrd Mat Sub Active Infowar (turns) 691 | 92 599 . Seismic 691 | 92 599 . Robot Analysis Total 1 | . 1 . Derelict Logs Recovered 1 | . . 1 Drone Launches . | . . . Drone Recoveries . | . . . Exploration | -11 -10 -10 ------------- Run | Yrd Mat Sub Turns Passed 9970 | 184 1522 8264 Spaces Moved 3687 | 90 724 2873 Core 3 | 3 . . Treads 3684 | 87 724 2873 Legs . | . . . Wheels . | . . . Hover . | . . . Flight . | . . . Fastest Speed 50 | 50 160 160 Average Speed 244 | 156 160 269 Slowest Speed 560 | 160 160 560 Overloaded Moves . | . . . Propulsion Burnouts . | . . . Robots Hopped . | . . . Potential Cave-ins . | . . . Cave-ins Triggered . | . . . Exploration Rate (%) 66 | 3 99 96 Regions Visited 2 Branch Regions 1 Pre-discovered Areas 3 | . 2 1 Known Exits Taken 1 | . 1 . Unknown Exits Taken 1 | 1 . . Scrap Searched 9 | . . 9 Spaces Dug 86 | . . 86 Terrain Destroyed 490 | . . 490 Melee . | . . . Projectile 12 | . . 12 AOE 478 | . . 478 Terrain Rammed . | . . . Walls Destroyed . | . . . Machines Disabled . | . . . Actions | -11 -10 -10 --------- Run | Yrd Mat Sub Total 4267 | 110 930 3227 Wait 210 | . 70 140 Move 3685 | 89 723 2873 Hop . | . . . Pick Up 66 | 4 26 36 Fast Attach 11 | 7 . 4 Attach 3 | . 1 2 Detach 1 | . 1 . Swap 20 | . 10 10 Drop 37 | . 18 19 Fire 221 | 10 81 130 Melee . | . . . Ram . | . . . Kick . | . . . Crush . | . . . Escape Stasis . | . . . Rewire . | . . . Trap . | . . . Miscellaneous 13 | . . 13 Route ------- -11/Scrapyard -10/Materials (discovered 6 exits: *Mat x3 / *Min x2 / *Sub) -10/Subcaves (discovered 2 exits: [*Mat x2]) History --------- Turn | Location | Event 31 | -11/Scrapyard | Discovered new exit (range 15) 185 | -11/Scrapyard | Entered Materials 307 | -10/Materials | Build established: Mutant 346 | -10/Materials | Central database locked down 453 | -10/Materials | Discovered new exit (range 16) 724 | -10/Materials | Discovered new exit (range 15) 756 | -10/Materials | Learned Storage trap positions 909 | -10/Materials | Identified exit to Materials 909 | -10/Materials | Identified exit to Mines 932 | -10/Materials | Discovered exit to Materials (range 15) 984 | -10/Materials | Identified exit to Subcaves 1035 | -10/Materials | Learned location of 2 exits from Materials 1707 | -10/Materials | Entered Subcaves 1759 | -10/Subcaves | Shifting Twisted Machinery released Scrap Shield 1759 | -10/Subcaves | Shifting Twisted Machinery released Sub. Power Source 1902 | -10/Subcaves | A swath of the cavern ceiling suddenly collapsed 2041 | -10/Subcaves | Visited Clippyterm 2046 | -10/Subcaves | Learned Factory garrison access intel 2137 | -10/Subcaves | Ambushed by Subdweller buried in earth 2145 | -10/Subcaves | Core integrity fell below 50% 2590 | -10/Subcaves | Discovered new exit (range 12) 2742 | -10/Subcaves | Discovered new exit (range 6) 2881 | -10/Subcaves | Shifting Twisted Machinery released Humpback 2883 | -10/Subcaves | Shifting Twisted Machinery released Barrage Gun 3012 | -10/Subcaves | A swath of the cavern ceiling suddenly collapsed 3168 | -10/Subcaves | Shifting Twisted Machinery released Battle Cannon 3168 | -10/Subcaves | Shifting Twisted Machinery released Enh. Flamer 3779 | -10/Subcaves | Build established: Subdweller-Mutant 4036 | -10/Subcaves | Learned location of Zion (-6) 4036 | -10/Subcaves | Met a Zionite searching for "candidates" 4758 | -10/Subcaves | Core integrity fell below 20% 5448 | -10/Subcaves | Visited 4L-MR0's lab 5464 | -10/Subcaves | Found Rainbow Chip 5927 | -10/Subcaves | Ambushed by Subdweller buried in earth 6495 | -10/Subcaves | Build established: Hauler-Mutant 7906 | -10/Subcaves | Ambushed by Subdweller buried in earth 7906 | -10/Subcaves | Ambushed by Subdweller buried in earth 9971 | -10/Subcaves | Destroyed by S-10 Pest with Light Assault Rifle Last Messages --------------- 07688_ Acquired Scrap Shield Fragment. 07907_ XP-KQE(R): "ARGHSUB!" 07907_ NP-4TZ(R): "GOODGOOD!" 07908_ NP-4TZ(R) destroyed. 07913_ LP-GB6(R): "ARGHSUB!" 07915_ XP-KQE(R) destroyed. 07918_ LP-GB6(R) destroyed. 07979_ The unstable cave ceiling collapses. 07983_ Acquired Sub. Power Source. 08160_ Acquired 25 matter. 08227_ Acquired 33 matter. 08238_ Acquired Mak. Axe. 08245_ Acquired 13 matter. 08446_ Acquired Sub. Power Source. 08453_ Acquired Sub. Machine Gun. 08459_ Acquired 34 matter. 08829_ Acquired Scrap Shield Fragment. 09539_ UN-6F1(u) tweaks Twisted Machinery. 09952_ Machine disabled. 09971_ S-10 Pest destroyed. Map ----- +----------------------------------------------------+ | #??????????????????????????????### #?? | | ???????????????????????????????#"" [ ##?? | | ??????????????????????????????#"" # #??? | | ???????????????????????????????#" ## "#??? | | ???????????????????????????????# #"##??? | | ?????????????###########??????# ###???? | | ???????????###" " " ##?????#### #####?????? | | ???????????# " "" "##???????# ##?????????? | | ??????????##" %[^####"="#???????# ???????????? | | ??????????#"" #??##%"#???????# ???????????? | | ??????????# %"##??#!! #???????## ???????????? | | ??????????##""["##??### ]#????????# ???????????? | | ???????????######???#" "#???????? ? ???????????? | | ???????????##########" ##?????? ??????????????? | | ???????????#! "# ###??#### ????????????? | | ???????????#"% ##"%&#?# ; ss ?????????????? | | ???????????##" ## "##" ##; *= " ????????????? | | ??????????#######" "####% *% ?????????????? | | ?????????## ### " ##& [;#??????????????? | | ?????????# #???#####??????? | | ??????#### ### ##### #??## ####???? | | ??##### #???###; #??## ##??? | | ??# #????##; ; #?## #??? | | ??# ####### ### #??? | | ??# ## #?# ;; ;# ## ### #??? | | ??# ### #######;;; @ ##?# #??? | | ??# ##?# ###### ;; ##### ##??? | | ??##??## "# ##### # #???? | | ??????# ; ;;;#####???### # #???? | | ?????## ;; ##?????????### #???? | | ????## ;####??#####?????# ##???? | | ????# ###????## #?????# #????? | | ????#### & #?????# #?????#### #????? | | ???????# ##???## ##???????# !##????? | | ???????# #???# ##??????### #?????? | | ######## " ##???# #?????### # #?????? | | [# |## #""; " #???## ####??# ##????? | | ! & ## ####### ##### """ ##?## # #????? | | ##&"#" "##???# ### " " ### #####????? | | # ##" ""#???# #### """ ### "#???????? | | ## # " "#??### "### #?# "##???????? | | " " ##### ## ## ##?# ""#???????? | | = "#### ""#???????? | | ## ## "#???????? | | """" ## # ####### ## "###?????? | | # ### """######## #####?####### " "#?????? | | ####?#######??????## ""#"##??????# "###???? | | ???????????????????#" ! &"""######### " #???? | | ???????????????????##"""""""""" # # ## ####???? | | ????????????????????#"" """"" " " #??????? | +----------------------------------------------------+ Best States ------------- Heat Dissipation 25 Energy Generation 12 Energy Capacity 265 Matter Stores 300 Matter Capacity 300 Sight Range 16 Terrain Scan Density 10 Armor Coverage 800 Evasion (%) 40 Targeting Accuracy 5 Recoil Reduction 2 Item Schematics ----------------- None Robot Schematics ------------------ None Fabricated ------------ Nothing Repaired ---------- Nothing Alien Tech Used ----------------- None Achievements -------------- None Challenges ------------ None Game ------ Seed CoolingGuidedWheel Manual? 0 Play Time 00:33:03 Cumulative 266.4 hours Start 2025.05.24 @ 21:32:38 End 2025.05.24 @ 22:04:10 Sessions 1 Manual Loads 0 Difficulty Rogue Special Mode None Game No. 127 Rogue 127 Adventurer 0 Explorer 0 Win Type - Total 1 Types 0/0/0/0/1/0/0/0/0/0 Lore% 65 Gallery% 73 Achievement% 64 Wizard Run 0 Options --------- Layout 0 ASCII 0 Keyboard 0 Movement Mouse Keybinds 0 Fullscreen 1 Font 24/Smallcaps Map View 183x50 Zoom Use 0% Tactical HUD 1 Map Filters NONE Filters NONE Steam 0 RUN: c6da2c3a-59f6-4cd7-aed6-b3d55e24f6af